fUSD/lending_fUSD_20240909
["ID","MTS","AMOUNT","RATE_DAILY","PERIOD"]
[337645101,1725905461219,-3351.57,0.00014794,2]
[337645102,1725905461229,-524.35,0.00014794,2]
[337645103,1725905461240,-500.0,0.00014794,2]
[337645104,1725905461250,-2523.99,0.00014794,2]
[337645105,1725905461260,-2766.8971122,0.00014794,2]
[337645106,1725905461295,-584.6728878,0.00014794,2]
[337645107,1725905461305,-524.35,0.00014794,2]
[337645108,1725905461314,-500.0,0.00014794,2]
[337645109,1725905461324,-2523.99,0.00014794,2]
[337645110,1725905461334,-3351.57,0.00014794,2]
[337645111,1725905461343,-524.35,0.00014794,2]
[337645112,1725905461353,-500.0,0.00014794,2]
[337645113,1725905461363,-2523.99,0.00014794,2]
[337645114,1725905461373,-3351.57,0.00014794,2]
[337645115,1725905461383,-524.35,0.00014794,2]
[337645116,1725905461393,-500.0,0.00014794,2]
[337645117,1725905461403,-151.0,0.00014794,2]
[337645118,1725905461412,-2523.99,0.00014794,2]
[337645119,1725905461422,-3351.57,0.00014794,2]
[337645120,1725905461437,-500.0,0.00014794,2]
[337645121,1725905461447,-524.35,0.00014794,2]
[337645122,1725905461456,-500.0,0.00014794,2]
[337645123,1725905461465,-2523.99,0.00014794,2]
[337645124,1725905461474,-3351.57,0.00014794,2]
[337645125,1725905461484,-500.0,0.00014794,2]
[337645126,1725905461495,-151.0,0.00014794,2]
[337645127,1725905461504,-500.0,0.00014794,2]
[337645128,1725905461514,-156.0057406,0.00014794,2]
[337645129,1725905461537,-343.9942594,0.00014794,2]
[337645130,1725905461547,-2523.99,0.00014794,2]
[337645131,1725905461557,-3351.57,0.00014794,2]
[337645132,1725905461567,-500.0,0.00014794,2]
[337645133,1725905461580,-524.35,0.00014794,2]
[337645134,1725905461591,-507.31760152,0.00014794,2]
[337645135,1725905461601,-500.0,0.00014794,2]
[337645136,1725905461612,-2523.99,0.00014794,2]
[337645137,1725905461623,-1045.29037908,0.00014794,2]
[337645138,1725905461639,-2306.27962092,0.00014794,2]
[337645139,1725905461649,-524.35,0.00014794,2]
[337645140,1725905461661,-500.0,0.00014794,2]
[337645141,1725905461672,-500.0,0.00014794,2]
[337645142,1725905461682,-3351.57,0.00014794,2]
[337645143,1725905461692,-2523.99,0.00014794,2]
[337645144,1725905461702,-524.35,0.00014794,2]
[337645145,1725905461711,-500.0,0.00014794,2]
[337645146,1725905461721,-500.0,0.00014794,2]
[337645147,1725905461731,-3351.57,0.00014794,2]
[337645148,1725905461740,-524.35,0.00014794,2]
[337645149,1725905461751,-500.0,0.00014794,2]
[337645150,1725905461761,-661.61331431,0.00014794,2]
[337645151,1725905463098,-353.47,0.00014794,2]
[337645152,1725905463110,-704.85845544,0.00014794,2]
[337645153,1725905463167,-708.905,0.00014794,2]
[337645154,1725905463211,-264.06840755,0.00014694,2]
[337645155,1725905463227,-375.08728973,0.00014694,2]
[337645156,1725905463236,-95.14323025,0.00014794,2]
[337645157,1725905463246,-500.0,0.00014794,2]
[337645158,1725905463255,-500.0,0.00014794,2]
[337645159,1725905463265,-3351.57,0.00014794,2]
[337645160,1725905463274,-500.0,0.00014794,2]
[337645161,1725905463284,-2523.99,0.00014794,2]
[337645162,1725905463293,-524.35,0.00014794,2]
[337645163,1725905463303,-500.0,0.00014794,2]
[337645164,1725905463312,-500.0,0.00014794,2]
[337645165,1725905463321,-320.65163571,0.00014794,2]
[337645166,1725905463373,-1554.23207167,0.00014794,2]
[337645167,1725905463385,-1476.68629262,0.00014794,2]
[337645168,1725905463395,-500.0,0.00014794,2]
[337645169,1725905463404,-524.35,0.00014794,2]
[337645170,1725905463414,-500.0,0.00014794,2]
[337645171,1725905463423,-2523.99,0.00014794,2]
[337645172,1725905463433,-500.0,0.00014794,2]
[337645173,1725905463442,-3351.57,0.00014794,2]
[337645174,1725905463451,-500.0,0.00014794,2]
[337645175,1725905463461,-524.35,0.00014794,2]
[337645176,1725905463471,-2523.99,0.00014794,2]
[337645177,1725905463480,-3351.57,0.00014794,2]
[337645178,1725905463490,-500.0,0.00014794,2]
[337645179,1725905463499,-500.0,0.00014794,2]
[337645180,1725905463509,-500.0,0.00014794,2]
[337645181,1725905463519,-524.35,0.00014794,2]
[337645182,1725905463528,-2523.99,0.00014794,2]
[337645183,1725905463539,-3351.57,0.00014794,2]
[337645184,1725905463549,-500.0,0.00014794,2]
[337645185,1725905463559,-500.0,0.00014794,2]
[337645186,1725905463570,-524.35,0.00014794,2]
[337645187,1725905463585,-3351.57,0.00014794,2]
[337645188,1725905463595,-2523.99,0.00014794,2]
[337645189,1725905463604,-635.6259668,0.00014794,2]
[337645190,1725905463614,-500.0,0.00014794,2]
[337645191,1725905463623,-500.0,0.00014794,2]
[337645192,1725905463633,-524.35,0.00014794,2]
[337645193,1725905463643,-2523.99,0.00014794,2]
[337645194,1725905463652,-3351.57,0.00014794,2]
[337645195,1725905463663,-503.21542426,0.00014794,2]
[337645196,1725905463674,-500.0,0.00014794,2]
[337645197,1725905463684,-524.35,0.00014794,2]
[337645198,1725905463694,-2523.99,0.00014794,2]
[337645199,1725905463704,-500.0,0.00014794,2]
[337645200,1725905463714,-3351.57,0.00014794,2]
[337645201,1725905463723,-524.35,0.00014794,2]
[337645202,1725905463733,-2523.99,0.00014794,2]
[337645203,1725905463743,-3351.57,0.00014794,2]
[337645204,1725905463752,-500.0,0.00014794,2]
[337645205,1725905463762,-524.35,0.00014794,2]
[337645206,1725905463772,-2523.99,0.00014794,2]
[337645207,1725905463782,-500.0,0.00014794,2]
[337645208,1725905463791,-500.0,0.00014794,2]
[337645209,1725905463801,-500.0,0.00014794,2]
[337645210,1725905463811,-524.35,0.00014794,2]
[337645211,1725905463820,-2523.99,0.00014794,2]
[337645212,1725905463830,-120.84631632,0.00014794,2]
[337645213,1725905463864,-379.15368368,0.00014794,2]
[337645214,1725905463874,-3021.99341632,0.00014794,2]
[337645215,1725905465187,-329.57658368,0.00014794,2]
[337645216,1725905465195,-220.38399536,0.00014794,2]
[337645217,1725905752873,150.0,0.00011804,2]
[337645218,1725905752901,381.92,0.00011804,2]
[337645219,1725905864368,398.01,0.00010959,2]
[337645220,1725906135812,150.0,0.00011,2]
[337645221,1725906135833,150.0,0.00011,2]
[337645222,1725906135859,150.0,0.00011,2]
[337645223,1725906135880,150.0,0.00011,2]
[337645224,1725906135903,150.0,0.00011,2]
[337645225,1725906155027,184.0,0.00028,120]
[337645226,1725906211287,200.0,0.00010958,2]
[337645227,1725906337810,150.0,0.00011156,2]
[337645228,1725906337836,150.0,0.00011156,2]
[337645229,1725906337859,150.0,0.00011156,2]
[337645230,1725906337884,76.28,0.00011156,2]
[337645231,1725906352730,150.0,0.00010988,2]
[337645232,1725906352750,150.0,0.00010988,2]
[337645233,1725906352779,150.0,0.00010988,2]
[337645234,1725906352799,150.0,0.00010988,2]
[337645235,1725906352822,150.0,0.00010988,2]
[337645236,1725906352847,150.0,0.00010988,2]
[337645237,1725906352868,150.0,0.00010988,2]
[337645238,1725906352889,150.0,0.00010988,2]
[337645239,1725906352910,150.0,0.00010988,2]
[337645240,1725906352932,150.0,0.00010988,2]
[337645241,1725906352954,212.36308284,0.00010988,2]
[337645242,1725906352977,22081.69494906,0.00010988,2]
[337645243,1725906399234,150.0,0.00010959,2]
[337645244,1725906399255,2.53,0.00010959,2]
[337645245,1725906510013,-1223.0,0.00012099,2]
[337645246,1725906510042,-725.91079194,0.000121,2]
[337645262,1725906631502,-377.98883665,0.00012899,2]
[337645263,1725906631511,-1467.37116076,0.000129,2]
[337645264,1725906631523,-450.0,0.000129,2]
[337645265,1725906631637,-290.46,0.000129,2]
[337645266,1725906631647,-551.105575,0.000129,2]
[337645282,1725906637390,-4084.23259309,0.000129,2]
[337645283,1725906637400,-3180.40166409,0.0001299,2]
[337645284,1725906637409,-150.0,0.00013,2]
[337645285,1725906637418,-800.0,0.00013,2]
[337645286,1725906637428,-150944.46278499,0.00013,2]
[337645287,1725906637437,-6591.34995638,0.00013,2]
[337645288,1725906637448,-985.02,0.00013,2]
[337645289,1725906637654,-1109.71958097,0.00013,2]
[337645290,1725906637672,-130.02789567,0.00013,2]
[337645291,1725906637681,-250.0,0.00013004,2]
[337645292,1725906637691,-2000.0,0.00013074,2]
[337645293,1725906637701,-1000.0,0.00013074,2]
[337645294,1725906637713,-250.0,0.00013095,2]
[337645295,1725906637723,-6843.16932879,0.00013099,2]
[337645296,1725906637733,-150.0,0.00013101,2]
[337645297,1725906637743,-16638.9320816,0.00013101,2]
[337645298,1725906637754,-585.70767439,0.00013101,2]
[337645302,1725906639456,-4250.93812558,0.00013101,2]
[337645303,1725906639468,-2424.42211843,0.00013101,2]
[337645304,1725906639477,-166.82,0.00013142,2]
[337645305,1725906639487,-1427.84916119,0.00013142,2]
[337645306,1725906639498,-315.6,0.00013142,2]
[337645307,1725906639510,-1388.14847626,0.00013142,2]
[337645308,1725906639525,-889.10430396,0.00013142,2]
[337645309,1725906639547,-538.18922764,0.00013142,2]
[337645310,1725906639684,-5441.09883095,0.00013142,2]
[337645311,1725906639693,-250.0,0.00013165,2]
[337645312,1725906639703,-1187.31,0.00013193,2]
[337645313,1725906639714,-150.0,0.0001329,2]
[337645314,1725906639724,-150.0,0.0001329,2]
[337645318,1725906639873,-150.0,0.0001329,2]
[337645322,1725906639902,-150.0,0.0001329,2]
[337645324,1725906639914,-173.1,0.00013298,2]
[337645326,1725906639923,-499.99,0.00013298,2]
[337645328,1725906639932,-6843.16932879,0.00013299,2]
[337645330,1725906639943,-150.0,0.00013309,2]
[337645332,1725906639952,-150.0,0.00013327,2]
[337645334,1725906639962,-150.0,0.00013345,2]
[337645336,1725906639971,-174.98,0.00013384,2]
[337645338,1725906639981,-500.0,0.00013399,2]
[337645340,1725906639991,-526.28,0.0001342,2]
[337645342,1725906640001,-6843.16932879,0.00013498,2]
[337645344,1725906640010,-172.14,0.00013632,2]
[337645346,1725906640020,-6843.16932879,0.00013697,2]
[337645348,1725906640031,-164.56,0.00013699,2]
[337645350,1725906640042,-162.3,0.00013699,2]
[337645352,1725906640052,-200.0,0.00013699,2]
[337645354,1725906640061,-616.93,0.00013699,2]
[337645356,1725906640072,-615.26974181,0.00013837,2]
[337645359,1725906640083,-6843.16932879,0.00013897,2]
[337645361,1725906640092,-172.293543,0.00013973,2]
[337645363,1725906640101,-427.41,0.00014078,2]
[337645364,1725906640111,-150.0,0.00014078,2]
[337645367,1725906640120,-301.96,0.00014078,2]
[337645369,1725906640130,-150.0,0.00014078,2]
[337645371,1725906640139,-154.12,0.00014078,2]
[337645373,1725906640148,-350.92,0.00014078,2]
[337645375,1725906640158,-6843.16932879,0.00014096,2]
[337645377,1725906640167,-150.0,0.00014192,2]
[337645379,1725906640177,-6843.16932879,0.00014295,2]
[337645381,1725906640186,-300.09,0.00014352,2]
[337645383,1725906640196,-260.692,0.00014446,2]
[337645385,1725906640205,-3795.9502,0.00014446,2]
[337645387,1725906640214,-6843.16932879,0.00014495,2]
[337645389,1725906640224,-1000.0,0.000145,2]
[337645391,1725906640233,-7658.9519,0.00014546,2]
[337645393,1725906640242,-22395.62688914,0.00014546,2]
[337645395,1725906640259,-900.45932609,0.00014546,2]
[337645398,1725906640271,-1621.6911387,0.00014546,2]
[337645469,1725906880500,150.0,0.00011855,2]
[337645470,1725906880522,150.0,0.00011855,2]
[337645471,1725906880543,150.0,0.00011855,2]
[337645472,1725906880564,58.48,0.00011855,2]
[337645473,1725906955303,192.65,0.00010959,2]
[337645474,1725907112306,160.0,0.00011,10]
[337645475,1725907122674,160.0,0.00012,12]
[337645476,1725907380955,150.0,0.00011542,2]
[337645477,1725907380977,150.0,0.00011542,2]
[337645478,1725907380998,150.0,0.00011542,2]
[337645479,1725907381020,40.55,0.00011542,2]
[337645480,1725907500953,150.0,0.00010959,2]
[337645481,1725907500976,36.58,0.00010959,2]
[337645485,1725907831838,-500.0,0.00012945,2]
[337645486,1725907831849,-250.0,0.00012947,2]
[337645487,1725907831859,-593.65,0.00012948,2]
[337645488,1725907831869,-250.0,0.00012954,2]
[337645489,1725907831880,-174.98,0.00012954,2]
[337645490,1725907831890,-1067.08756776,0.0001299,2]
[337645491,1725907831900,-150.0,0.00013,2]
[337645492,1725907831910,-150.0,0.0001329,2]
[337645493,1725907831920,-150.0,0.0001329,2]
[337645494,1725907831930,-150.0,0.0001331,2]
[337645496,1725907831941,-150.0,0.00013329,2]
[337645498,1725907831951,-6.00619751,0.00013329,2]
[337645499,1725907831963,-493.98380249,0.00013329,2]
[337645501,1725907831972,-150.0,0.00013348,2]
[337645503,1725907831981,-150.0,0.00013367,2]
[337645504,1725907831990,-150.0,0.00013386,2]
[337645506,1725907831999,-150.0,0.00013397,2]
[337645508,1725907832010,-1000.0,0.00013398,2]
[337645510,1725907832019,-150.0,0.00013405,2]
[337645511,1725907832028,-250.0,0.00013413,2]
[337645514,1725907832038,-150.0,0.00013425,2]
[337645517,1725907832048,-204.05398468,0.00013429,2]
[337645518,1725907832059,-800.0,0.00013429,2]
[337645529,1725907839806,-1175.375,0.00013429,2]
[337645530,1725907839818,-268.76014999,0.00013429,2]
[337645531,1725907839829,-667.2787451,0.00013429,2]
[337645597,1725907842823,-5149.13413065,0.00013429,2]
[337645598,1725907842837,-782.4782933,0.00013429,2]
[337645601,1725907843235,-491.8592599,0.00013429,2]
[337645606,1725907873521,150.0,0.00011287,2]
[337645607,1725907873543,150.0,0.00011287,2]
[337645608,1725907873565,150.0,0.00011287,2]
[337645609,1725907873587,58.11,0.00011287,2]
[337645610,1725907955272,750.0,0.00011,2]
[337645611,1725908030358,500.0,0.00025713,120]
[337645612,1725908030875,509.985445,0.00027713,120]
[337645613,1725908033939,202.108289,0.00024713,120]
[337645614,1725908057963,3662.887501,0.00025,60]
[337645615,1725908067727,150.0,0.00010959,2]
[337645616,1725908067751,10.11,0.00010959,2]
[337645617,1725908420514,150.0,0.00010982,2]
[337645618,1725908420540,332.7,0.00010982,2]
[337645619,1725908603153,150.0,0.00010959,2]
[337645620,1725908603173,150.0,0.00010959,2]
[337645621,1725908603192,78.1,0.00010959,2]
[337645622,1725908623077,500.0,0.00025,120]
[337645623,1725908628047,200.0,0.00024,120]
[337645625,1725908946319,150.0,0.00010939,2]
[337645626,1725908946340,150.0,0.00010939,2]
[337645627,1725908946361,150.0,0.00010939,2]
[337645628,1725908946382,82.81,0.00010939,2]
[337645632,1725909031870,-180.97641427,0.00012745,2]
[337645633,1725909031879,-309.48724876,0.00012817,2]
[337645634,1725909031890,-697.89036063,0.00012817,2]
[337645635,1725909031902,-992.62239061,0.00012817,2]
[337645636,1725909031911,-104.71988846,0.00012834,2]
[337645637,1725909031923,-145.28011154,0.00012834,2]
[337645638,1725909031932,-606.84,0.0001284,2]
[337645639,1725909031942,-500.0,0.00012877,2]
[337645640,1725909031951,-250.0,0.00012877,2]
[337645641,1725909031960,-284.59580215,0.00012917,2]
[337645642,1725909031973,-3172.38668386,0.00012917,2]
[337645643,1725909031984,-484.32,0.00012917,2]
[337645644,1725909031996,-503.022718,0.00012917,2]
[337645645,1725909032123,-723.46707544,0.00012917,2]
[337645646,1725909032135,-1332.63115809,0.00012917,2]
[337645647,1725909032146,-879.36353194,0.00012917,2]
[337645648,1725909032157,-1346.50221221,0.00012917,2]
[337645649,1725909032184,-15173.71081831,0.00012917,2]
[337645650,1725909032193,-1000.0,0.0001293,2]
[337645651,1725909032203,-299.99,0.0001293,2]
[337645652,1725909032212,-169.54,0.00012945,2]
[337645653,1725909032220,-499.99,0.00012945,2]
[337645654,1725909032232,-800.0,0.00013,2]
[337645655,1725909032243,-150.0,0.00013,2]
[337645656,1725909032252,-247.497072,0.00013093,2]
[337645657,1725909032262,-532.81,0.00013203,2]
[337645658,1725909032271,-150.0,0.0001329,2]
[337645659,1725909032281,-183.37789928,0.0001329,2]
[337645660,1725909032291,-150.0,0.0001329,2]
[337645661,1725909032303,-315.5173026,0.00013305,2]
[337645662,1725909032312,-150.0,0.00013312,2]
[337645663,1725909032322,-150.0,0.00013333,2]
[337645665,1725909032332,-150.0,0.00013355,2]
[337645667,1725909032341,-150.0,0.00013376,2]
[337645669,1725909032351,-150.0,0.00013397,2]
[337645671,1725909032360,-150.0,0.00013419,2]
[337645673,1725909032369,-2230.02678,0.00013429,2]
[337645675,1725909032379,-150.0,0.0001344,2]
[337645676,1725909032388,-150.0,0.00013462,2]
[337645677,1725909032397,-150.0,0.00013483,2]
[337645678,1725909032407,-150.0,0.00013504,2]
[337645680,1725909032416,-150.0,0.00013504,2]
[337645682,1725909032426,-150.0,0.00013526,2]
[337645684,1725909032435,-150.0,0.00013547,2]
[337645686,1725909032445,-228.28,0.00013554,2]
[337645688,1725909032455,-150.0,0.00013569,2]
[337645690,1725909032464,-150.0,0.0001359,2]
[337645692,1725909032473,-150.0,0.00013611,2]
[337645694,1725909032482,-150.0,0.00013633,2]
[337645695,1725909032492,-150.0,0.00013654,2]
[337645697,1725909032502,-150.0,0.00013676,2]
[337645698,1725909032511,-150.0,0.00013697,2]
[337645700,1725909032520,-162.3,0.00013699,2]
[337645702,1725909032530,-168.06,0.00013699,2]
[337645703,1725909032540,-150.0,0.00013718,2]
[337645705,1725909032549,-150.0,0.0001374,2]
[337645707,1725909032560,-150.0,0.00013761,2]
[337645728,1725909032817,-150.0,0.00013783,2]
[337645729,1725909032828,-150.0,0.00013804,2]
[337645730,1725909032838,-150.0,0.00013825,2]
[337645731,1725909032848,-150.0,0.00013847,2]
[337645732,1725909032857,-150.0,0.00013868,2]
[337645733,1725909032867,-150.0,0.0001389,2]
[337645734,1725909032876,-150.0,0.00013911,2]
[337645735,1725909032886,-150.0,0.00013932,2]
[337645736,1725909032895,-150.0,0.00013954,2]
[337645737,1725909032904,-150.0,0.00013975,2]
[337645738,1725909032914,-150.0,0.00013997,2]
[337645739,1725909032924,-150.0,0.00014018,2]
[337645740,1725909032933,-150.0,0.00014039,2]
[337645741,1725909032942,-150.0,0.00014061,2]
[337645742,1725909032953,-150.0,0.00014082,2]
[337645743,1725909032962,-1367.0,0.000141,2]
[337645744,1725909032972,-150.0,0.00014104,2]
[337645745,1725909032982,-150.0,0.00014125,2]
[337645746,1725909032991,-150.0,0.00014146,2]
[337645747,1725909033001,-150.0,0.00014168,2]
[337645748,1725909033011,-150.0,0.00014189,2]
[337645749,1725909033020,-300.0,0.00014192,2]
[337645750,1725909033030,-300.0,0.00014192,2]
[337645751,1725909033039,-150.0,0.00014192,2]
[337645752,1725909033050,-300.0,0.00014192,2]
[337645753,1725909033060,-300.59,0.00014192,2]
[337645754,1725909033070,-150.0,0.00014211,2]
[337645755,1725909033080,-150.0,0.00014232,2]
[337645756,1725909033090,-150.0,0.00014253,2]
[337645757,1725909033100,-150.0,0.00014275,2]
[337645758,1725909033110,-4786.06750539,0.0001429,2]
[337645759,1725909033119,-150.0,0.00014296,2]
[337645760,1725909033129,-4389.6255,0.000143,2]
[337645761,1725909033139,-12061.7949,0.000143,2]
[337645762,1725909033149,-213.9968,0.000143,2]
[337645763,1725909033158,-260.692,0.000143,2]
[337645764,1725909033168,-236.90343685,0.000143,2]
[337645765,1725909033178,-1413.61303412,0.000143,2]
[337645766,1725909033187,-6746.5996,0.000143,2]
[337645767,1725909033196,-150.0,0.00014318,2]
[337645768,1725909033206,-150.0,0.00014339,2]
[337645769,1725909033215,-1413.61303411,0.00014344,2]
[337645770,1725909033225,-236.90343679,0.00014356,2]
[337645771,1725909033234,-150.0,0.0001436,2]
[337645772,1725909033243,-150.0,0.00014382,2]
[337645773,1725909033253,-1413.61303411,0.00014388,2]
[337645774,1725909033262,-450.0,0.0001439,3]
[337645775,1725909033271,-500.0,0.00014399,2]
[337645776,1725909033281,-500.0,0.00014399,2]
[337645777,1725909033290,-402.63772235,0.00014399,2]
[337645778,1725909033300,-675.1766,0.000144,2]
[337645779,1725909033310,-1269.2932,0.000144,2]
[337645780,1725909033320,-1000.0,0.000144,2]
[337645781,1725909033330,-38177.18699663,0.000144,2]
[337645782,1725909033359,-8868.9113244,0.000144,2]
[337645783,1725909037852,-14051.51092982,0.0001438,2]
[337645784,1725909037921,-11129.9312,0.0001438,2]
[337645785,1725909037932,-1503.10643675,0.0001438,2]
[337645786,1725909037944,-421.78588728,0.0001438,2]
[337645787,1725909038093,-803.1,0.0001438,2]
[337645788,1725909038117,-583.24175766,0.0001438,2]
[337645789,1725909038137,-2709.48663959,0.0001438,2]
[337645790,1725909038148,-2364.01451426,0.0001438,2]
[337645791,1725909038160,-724.97184001,0.0001438,2]
[337645792,1725909038298,-425.4,0.0001438,2]
[337645796,1725909040010,-336.04026976,0.0001438,2]
[337645797,1725909040022,-2516.12360875,0.0001438,2]
[337645798,1725909040035,-10465.05047589,0.0001438,2]
[337645799,1725909040047,-1264.56601225,0.0001438,2]
[337645800,1725909040060,-88137.85854121,0.0001438,2]
[337645801,1725909040069,-289811.03557897,0.000144,2]
[337645802,1725909040079,-3256.0601,0.000144,2]
[337645803,1725909040088,-150.0,0.00014403,2]
[337645804,1725909040098,-236.90343679,0.00014413,2]
[337645805,1725909040108,-150.0,0.00014425,2]
[337645806,1725909040124,-1413.61303411,0.00014431,2]
[337645807,1725909040136,-150.0,0.00014446,2]
[337645808,1725909040149,-150.0,0.00014468,2]
[337645809,1725909040161,-236.90343679,0.00014469,2]
[337645810,1725909040172,-1413.61303411,0.00014475,2]
[337645811,1725909040185,-150.0,0.00014489,2]
[337645812,1725909040195,-157.35,0.0001449,2]
[337645813,1725909040205,-153875.70766163,0.000145,2]
[337645814,1725909040215,-150.0,0.0001451,2]
[337645815,1725909040228,-1413.61303411,0.00014519,2]
[337645816,1725909040240,-155.064189,0.00014521,2]
[337645817,1725909040251,-236.90343679,0.00014525,2]
[337645818,1725909040263,-150.0,0.00014532,2]
[337645819,1725909040275,-1000.0,0.00014546,2]
[337645820,1725909040287,-150.0,0.00014553,2]
[337645821,1725909040300,-538.0,0.00014556,2]
[337645822,1725909040313,-1413.61303411,0.00014563,2]
[337645823,1725909040324,-150.0,0.00014575,2]
[337645824,1725909040337,-1210.6967017,0.00014578,2]
[337645825,1725909040349,-236.90343679,0.00014581,2]
[337645826,1725909040362,-1821.84787602,0.00014594,2]
[337645829,1725909040374,-150.0,0.00014596,2]
[337645831,1725909040387,-200.632,0.000146,2]
[337645833,1725909040399,-758.91,0.00014603,2]
[337645835,1725909040411,-1413.61303411,0.00014606,2]
[337645837,1725909040421,-150.0,0.00014612,2]
[337645839,1725909040433,-150.0,0.00014617,2]
[337645841,1725909040445,-236.90343679,0.00014638,2]
[337645844,1725909040456,-150.0,0.00014639,2]
[337645846,1725909040468,-1413.61303411,0.0001465,2]
[337645848,1725909040480,-150.0,0.0001466,2]
[337645850,1725909040492,-166.42136765,0.0001468,2]
[337645853,1725909040503,-150.0,0.00014682,2]
[337645855,1725909040515,-422.86456736,0.00014684,2]
[337645857,1725909040525,-422.86456734,0.00014689,2]
[337645859,1725909040535,-6083.93115806,0.0001469,2]
[337645861,1725909040545,-910.21604025,0.00014694,2]
[337645863,1725909040555,-2542.26588269,0.00014694,2]
[337645865,1725909040567,-159.36596831,0.00014694,2]
[337645867,1725909040578,-236.90343679,0.00014694,2]
[337645869,1725909040589,-319.71969622,0.00014694,2]
[337645871,1725909040601,-1413.61303411,0.00014694,2]
[337645873,1725909040612,-422.86456734,0.00014694,2]
[337645875,1725909040624,-200.0,0.000147,2]
[337645878,1725909040637,-833.0,0.000147,4]
[337645880,1725909040648,-1000.0,0.000147,3]
[337645882,1725909040661,-1000.0,0.000147,3]
[337645884,1725909040675,-1000.0,0.000147,4]
[337645886,1725909040687,-403.0,0.000147,4]
[337645889,1725909040700,-1000.0,0.000147,3]
[337645891,1725909040713,-1000.0,0.000147,3]
[337645893,1725909040725,-1004.0,0.000147,3]
[337645895,1725909040737,-1460.0,0.000147,2]
[337645897,1725909040747,-150.0,0.00014703,2]
[337645899,1725909040758,-150.0,0.00014724,2]
[337645902,1725909040768,-150.0,0.00014746,2]
[337645904,1725909040780,-154.87460072,0.00014767,2]
[337645906,1725909040790,-468.791,0.00014767,2]
[337645908,1725909040802,-624.0,0.00014767,2]
[337645910,1725909040815,-1103.266,0.00014767,2]
[337645912,1725909040827,-1260.0,0.00014767,2]
[337645914,1725909040839,-48671.4492645,0.0001477,2]
[337645917,1725909040850,-500.0,0.00014773,2]
[337645919,1725909040860,-500.0,0.00014773,2]
[337645921,1725909040871,-66923.2427387,0.00014784,2]
[337645923,1725909040884,-97342.898529,0.00014784,2]
[337645925,1725909040894,-166.42136765,0.00014784,2]
[337645927,1725909040906,-189.636994,0.00014784,2]
[337645928,1725909040918,-159.167861,0.00014784,2]
[337645929,1725909040930,-1284.924612,0.00014784,2]
[337645930,1725909040941,-1284.924612,0.00014784,2]
[337645931,1725909040952,-151.0,0.00014784,2]
[337645932,1725909040961,-887.291042,0.00014784,2]
[337645933,1725909040971,-151.0,0.00014784,2]
[337645934,1725909040981,-151.0,0.00014784,2]
[337645935,1725909040992,-151.0,0.00014784,2]
[337645936,1725909041003,-151.0,0.00014784,2]
[337645937,1725909041013,-150.0,0.00014792,2]
[337645938,1725909041024,-130229.96380343,0.00014794,2]
[337645939,1725909041035,-437.04695927,0.00014794,2]
[337645940,1725909041054,-151.0,0.00014794,2]
[337645941,1725909041064,-500.0,0.00014794,2]
[337645942,1725909041076,-500.0,0.00014794,2]
[337645943,1725909041089,-500.87790657,0.00014794,2]